bitfinex/quotes_ETHUSD_20250114
["timestamp","ask_amount","ask_price","bid_price","bid_amount"]
[1736871067125,0.44062996,3186.8,3186.0,3.0]
[1736871067515,0.44062996,3186.8,3186.0,3.13869]
[1736871068434,3.13826,3186.5,3185.5,3.13919]
[1736871068636,0.801,3186.6,3185.2,3.0]
[1736871068843,0.03865664,3186.4,3185.2,3.0]
[1736871069053,0.03871268,3186.5,3186.4,3.13833]
[1736871069228,0.801,3187.0,3186.4,3.13829]
[1736871069559,3.97800293,3187.0,3186.1,3.0]
[1736871069846,3.13727,3187.5,3186.1,3.0]
[1736871070047,1.114709,3187.6,3186.6,3.0]
[1736871070251,1.114709,3187.6,3186.6,6.13813]
[1736871070252,3.13728,3187.5,3186.6,6.13813]
[1736871070423,0.801,3187.6,3186.7,3.13803]
[1736871071300,3.93816,3187.6,3186.7,3.13803]
[1736871071506,0.801,3187.6,3186.7,3.13803]
[1736871071701,3.97746071,3187.6,3186.6,3.0]
[1736871071906,4.33598607,3187.6,3186.6,6.13813]
[1736871072152,1.19874607,3187.6,3186.7,3.13801]
[1736871072447,1.19874607,3187.6,3186.7,3.13804]
[1736871072448,0.801,3187.6,3186.7,3.13804]
[1736871072655,0.801,3187.6,3186.6,3.0]
[1736871072656,0.801,3187.6,3187.2,3.13746]
[1736871072817,0.801,3187.6,3187.3,3.13744]
[1736871073148,0.801,3188.3,3187.3,3.13743]
[1736871073349,3.13657,3188.2,3187.2,3.13749]
[1736871073549,3.13657,3188.2,3187.0,3.0]
[1736871073550,0.801,3188.3,3187.6,3.13713]
[1736871073749,0.801,3188.3,3187.2,0.8019]
[1736871073924,0.801,3188.3,3187.6,4.00193498]
[1736871074123,3.93669,3189.1,3188.1,3.13662]
[1736871074421,0.03738411,3189.0,3188.2,3.13653]
[1736871074756,0.03738411,3189.0,3188.4,3.13633]
[1736871075105,0.03738411,3189.0,3188.0,6.13668]
[1736871075337,0.801,3189.1,3188.0,3.0]
[1736871075550,0.03745834,3188.9,3188.6,3.13614]
[1736871075760,0.801,3189.1,3188.2,3.55]
[1736871076054,0.7657,3189.6,3189.0,3.0]
[1736871076420,0.03816883,3189.5,3189.0,3.0]
[1736871077216,0.7657,3189.6,3188.8,3.0]
[1736871077442,0.7657,3189.6,3189.0,3.0]
[1736871077664,0.03825735,3189.5,3188.6,0.7682]
[1736871077861,0.03825735,3189.5,3189.0,3.13573]
[1736871078057,0.7657,3189.6,3189.0,3.13573]
[1736871078246,0.7657,3189.6,3188.6,0.7682]
[1736871078247,0.03815442,3189.4,3188.6,0.7682]
[1736871078450,0.03848662,3189.5,3189.1,3.13567]
[1736871078619,0.7657,3189.6,3189.1,3.13567]
[1736871078820,0.03823692,3189.4,3189.1,3.13567]
[1736871079019,3.87227297,3190.4,3188.7,3.13607]
[1736871079020,0.03851596,3189.5,3189.4,3.13538]
[1736871079260,0.7657,3190.0,3189.5,3.0]
[1736871079457,0.7657,3190.4,3189.6,3.0]
[1736871079669,0.7657,3190.4,3189.7,3.13506]
[1736871080163,0.7657,3190.4,3189.4,0.7682]
[1736871080164,0.03928597,3190.3,3190.0,3.13471]
[1736871080330,0.03928597,3190.3,3189.5,3.55]
[1736871080518,0.7657,3190.9,3189.8,4.96293358]
[1736871080721,5.39332,3192.6,3190.3,3.7682]
[1736871080722,0.7657,3191.5,3190.3,3.7682]
[1736871080949,0.7657,3191.5,3190.3,6.90263]
[1736871081148,0.7657,3191.5,3190.8,3.13398]
[1736871081523,0.03849095,3191.4,3190.8,3.13398]
[1736871082726,0.03849095,3191.4,3191.0,3.13378]
[1736871082925,0.03849095,3191.4,3190.8,3.13399]
[1736871083564,0.03849095,3191.4,3191.0,3.0]
[1736871084078,0.03849095,3191.4,3190.8,3.0]
[1736871084252,0.03849095,3191.4,3190.7,0.64256523]
[1736871084822,0.03849095,3191.4,3190.8,3.13395]
[1736871085128,0.03849095,3191.4,3190.9,3.1339]
[1736871085350,0.03849095,3191.4,3190.7,0.64256523]
[1736871085552,0.7657,3191.9,3191.0,3.1338]
[1736871085935,0.7657,3191.9,3190.7,0.64256523]
[1736871085936,0.03796787,3191.8,3190.7,0.64256523]
[1736871086238,0.03796787,3191.8,3191.0,3.13378]
[1736871086452,0.03796787,3191.8,3190.9,3.0]
[1736871086655,0.03796787,3191.8,3190.9,3.1339]
[1736871088269,0.03796787,3191.8,3191.0,3.13375]
[1736871089658,0.43161766,3191.8,3191.0,3.13375]
[1736871089870,0.43161766,3191.8,3190.7,0.64256523]
[1736871090055,0.43161766,3191.8,3191.0,3.13376]
[1736871090389,0.03796787,3191.8,3191.0,3.13376]
[1736871091865,0.03796787,3191.8,3190.7,0.64256523]
[1736871092180,0.03796787,3191.8,3190.9,6.13389]
[1736871093600,0.7657,3191.5,3190.7,0.64256523]
[1736871093905,3.17187473,3192.2,3190.1,3.13461]
[1736871093906,3.13362,3191.2,3190.1,3.13461]
[1736871094058,3.13362,3191.2,3190.2,1.255312]
[1736871094256,0.03846428,3191.1,3189.6,3.1351]
[1736871094502,0.7657,3190.9,3189.9,3.13481]
[1736871094815,3.13411,3190.7,3189.8,3.0]
[1736871095038,0.03818479,3190.6,3189.8,3.0]
[1736871095593,0.03818479,3190.6,3189.8,3.13496]
[1736871095988,0.03818479,3190.6,3189.6,3.0]
[1736871096232,0.03818479,3190.6,3189.9,3.13489]
[1736871096400,0.03818479,3190.6,3190.0,3.13477]
[1736871096725,0.03818479,3190.6,3190.0,3.0]
[1736871096933,0.03917935,3190.8,3189.5,1.87033063]
[1736871097102,0.03917935,3190.8,3188.9,4.7584689]
[1736871097103,0.7657,3190.2,3188.9,4.7584689]
[1736871097299,3.90031,3190.2,3189.2,3.13556]
[1736871097501,3.9902689,3189.9,3188.4,0.7682]
[1736871097742,3.901,3189.5,3187.9,0.7682]
[1736871097894,0.7657,3189.5,3188.3,4.256046]
[1736871098091,0.03721297,3189.4,3188.6,3.13613]
[1736871098287,0.07640717,3189.4,3188.3,3.1364]
[1736871098829,0.03721297,3189.4,3188.1,1.87851175]
[1736871099034,0.03721297,3189.4,3188.2,3.9902689]
[1736871099192,0.03721297,3189.4,3188.6,3.13616]
[1736871099387,0.03721297,3189.4,3188.3,3.13637]
[1736871099593,3.13589,3188.9,3187.8,3.1369]
[1736871099819,0.03513641,3188.8,3187.6,3.9902689]
[1736871100064,0.7657,3188.7,3187.6,3.13711]
[1736871100237,0.03920664,3188.6,3187.6,3.13711]
[1736871100438,0.03538186,3188.6,3187.7,6.13702]
[1736871100850,3.13628,3188.5,3187.5,3.13722]
[1736871101155,0.7657,3188.3,3187.3,0.32553024]
[1736871101684,0.03434823,3188.2,3187.3,0.32553024]
[1736871101981,0.03434823,3188.2,3187.4,3.0]
[1736871102281,0.03480425,3188.1,3187.3,0.32553024]
[1736871102579,0.03480425,3188.1,3187.5,3.0]
[1736871102731,0.7657,3188.3,3188.0,3.0]
[1736871102937,0.7657,3188.3,3187.5,3.0]
[1736871103185,0.03431188,3188.2,3187.3,3.46288024]
[1736871103332,0.7657,3188.3,3187.4,3.13726]
[1736871103731,0.7657,3188.3,3187.5,3.0]
[1736871103979,0.07352164,3188.2,3187.4,0.29094014]
[1736871104281,0.03431188,3188.2,3187.4,3.29094014]
[1736871104443,0.03431188,3188.2,3187.4,3.42828014]
[1736871104983,0.03431188,3188.2,3187.4,3.13734]
[1736871105972,0.03431188,3188.2,3187.3,0.32553024]
[1736871105973,0.42795007,3188.2,3187.3,0.32553024]
[1736871106280,3.13686,3187.9,3186.8,7.1281789]
[1736871106484,0.78981604,3188.1,3187.0,3.0]
[1736871106695,0.0340733,3187.8,3186.8,3.46393161]
[1736871106857,0.7506,3187.7,3186.9,3.23262754]
[1736871107058,0.78428222,3187.7,3186.9,3.23262754]
[1736871107525,0.78428222,3187.7,3187.0,3.13771]
[1736871107827,0.78428222,3187.7,3186.9,3.23262754]
[1736871107984,0.78428222,3187.7,3186.9,0.23262754]
[1736871108185,0.78428222,3187.7,3186.9,3.37046754]
[1736871108390,0.78428222,3187.7,3186.8,3.32601161]
[1736871108696,0.78428222,3187.7,3186.8,0.32601161]
[1736871108896,0.78428222,3187.7,3186.8,3.46387161]
[1736871109091,0.7506,3187.7,3186.8,0.32601161]
[1736871109379,0.03403757,3187.6,3187.0,3.13772]
[1736871111126,0.03403757,3187.6,3186.8,0.32601161]
[1736871111637,0.7506,3187.1,3186.8,0.32601161]
[1736871111796,0.46135424,3187.0,3186.8,0.32601161]
[1736871112004,0.03331035,3187.0,3186.8,0.32601161]
[1736871113817,3.17112035,3187.0,3186.8,0.32601161]
[1736871114244,0.03331035,3187.0,3186.8,0.32601161]
[1736871114639,0.03331035,3187.0,3186.9,3.13784]
[1736871114844,0.7506,3187.5,3187.0,3.13773]
[1736871115014,0.03121603,3187.4,3186.8,3.46393161]
[1736871115216,3.13737,3187.4,3186.8,0.32601161]
[1736871115420,0.03102944,3187.3,3186.8,0.32601161]
[1736871115835,0.03922018,3187.2,3186.8,0.32601161]
[1736871116040,3.52579982,3187.4,3186.8,0.32601161]
[1736871116041,0.03099357,3187.1,3186.8,0.32601161]
[1736871116250,3.52580982,3187.4,3186.8,0.32601161]
[1736871116437,0.03093754,3187.0,3186.8,0.32601161]
[1736871116619,3.9902689,3188.0,3186.8,0.32601161]
[1736871116820,3.13736,3187.4,3186.8,0.32601161]
[1736871117044,0.03123591,3187.3,3186.8,0.32601161]
[1736871117561,3.1372,3187.6,3186.8,0.32601161]
[1736871117720,0.03108682,3187.2,3186.8,0.32601161]
[1736871117916,0.816,3187.7,3186.9,3.13782]
[1736871118159,0.0310308,3187.1,3187.0,3.13771]
[1736871118356,0.816,3187.7,3187.0,3.13771]
[1736871118733,0.03120862,3187.6,3186.8,0.32601161]
[1736871119174,3.95313,3187.7,3186.8,0.32601161]
[1736871119461,0.816,3187.5,3186.8,0.32601161]
[1736871119636,3.13764,3187.2,3186.8,0.32601161]
[1736871119835,0.816,3187.0,3186.8,0.32601161]
[1736871120047,0.02968273,3186.9,3186.8,0.32601161]
[1736871122667,3.16752273,3186.9,3186.8,0.32601161]
[1736871122822,3.565875,3186.9,3186.8,0.32601161]
[1736871123162,3.13802,3186.8,3185.5,3.0]
[1736871123368,0.8112,3186.6,3186.3,0.32579347]
[1736871123550,0.8112,3186.6,3186.1,3.13863]
[1736871123735,0.0297954,3186.5,3186.3,0.32611396]
[1736871124246,0.02985106,3186.4,3185.5,0.52362676]
[1736871124418,3.94919,3186.8,3185.7,0.32583444]
[1736871124620,0.03001918,3186.7,3186.3,3.13839]
[1736871124855,0.8112,3186.8,3186.3,3.13839]
[1736871125058,3.13713,3187.7,3186.7,3.13803]
[1736871125257,0.394833,3187.7,3186.8,3.13786]
[1736871125468,0.03040499,3187.6,3186.8,3.13786]
[1736871125960,0.0392189,3187.7,3186.4,3.13828]
[1736871126151,3.16766899,3187.5,3186.5,3.13819]
[1736871126383,0.8112,3187.1,3186.3,3.13838]
[1736871126582,0.03922518,3187.0,3185.8,3.13886]
[1736871126764,3.94913,3186.9,3185.7,0.32583444]
[1736871127095,0.0694047,3186.8,3185.7,3.46477444]
[1736871127299,0.03017508,3186.8,3185.7,0.32583444]
[1736871127503,0.03017508,3186.8,3185.8,3.0]
[1736871127795,0.03017508,3186.8,3186.3,3.9902689]
[1736871128012,0.03017508,3186.8,3186.7,6.13804]
[1736871128152,0.8112,3187.3,3186.8,3.0]
[1736871128357,0.8112,3187.3,3186.7,3.13804]
[1736871128559,0.02982938,3187.2,3186.7,3.13804]
[1736871128780,0.02982938,3187.2,3186.8,0.29256518]
[1736871129191,0.8112,3187.3,3186.8,3.29256518]
[1736871129358,0.02992226,3187.1,3187.0,3.13773]
[1736871129553,0.8112,3187.6,3187.0,3.13773]
[1736871129986,0.03023952,3187.5,3187.0,3.13773]
[1736871130212,0.03023952,3187.5,3186.9,0.52662105]
[1736871130431,0.8112,3188.4,3187.4,3.0]
[1736871130631,0.03074952,3188.3,3188.0,3.13667]
[1736871130926,3.1357,3189.1,3188.0,3.13667]
[1736871131092,3.84394,3189.1,3188.0,3.13667]
[1736871131298,3.16716243,3189.0,3188.0,3.13667]
[1736871131501,0.03134243,3189.0,3187.6,0.55]
[1736871131701,0.03134243,3189.0,3188.3,3.13645]
[1736871131918,0.03134243,3189.0,3188.0,3.7913]
[1736871132223,0.03119927,3188.9,3187.8,3.13691]
[1736871132425,0.8112,3189.2,3188.1,0.29256518]
[1736871132628,0.8112,3189.2,3188.2,3.0]
[1736871132782,0.03151571,3189.1,3188.2,3.68653]
[1736871132979,0.8112,3189.2,3188.5,3.13622]
[1736871133205,0.03274999,3189.1,3188.5,3.13622]
[1736871133409,0.07194691,3189.1,3188.1,0.29256518]
[1736871133648,3.16845999,3189.1,3188.6,0.29256518]
[1736871133819,0.79699289,3189.0,3188.6,0.29256518]
[1736871134010,0.03264293,3188.9,3188.6,0.29256518]
[1736871134317,0.03218696,3188.9,3188.4,0.29256518]
[1736871134481,0.8112,3188.7,3188.4,0.29256518]
[1736871134923,0.03194147,3188.6,3188.4,0.29256518]
[1736871135220,0.03194147,3188.6,3188.0,3.29256518]
[1736871135380,0.03194147,3188.6,3188.0,0.29256518]
[1736871135780,0.8243,3188.2,3188.0,0.29256518]
[1736871136021,0.03154124,3188.1,3188.0,0.29256518]
[1736871136229,0.03154124,3188.1,3187.4,3.42988518]
[1736871136395,0.8243,3188.2,3187.4,3.42988518]
[1736871136596,0.03921088,3188.1,3187.4,0.29256518]
[1736871136780,0.03152863,3188.0,3187.4,0.29256518]
[1736871136983,0.8243,3188.2,3187.4,0.29256518]
[1736871137299,0.03158462,3188.1,3187.4,0.29256518]
[1736871137496,0.03158462,3188.1,3187.5,0.29256518]
[1736871137824,0.03112863,3188.0,3187.5,0.29256518]
[1736871138029,0.8243,3188.2,3187.5,0.29256518]
[1736871138182,3.237,3188.8,3187.5,0.29256518]
[1736871138183,0.7862,3188.8,3187.5,4.32435924]
[1736871138380,0.7862,3188.8,3188.0,3.13676]
[1736871138584,0.07025226,3188.7,3187.5,1.32435924]
[1736871138784,0.7862,3188.3,3187.6,0.29256518]
[1736871139001,0.7862,3187.8,3187.6,0.29256518]
[1736871139212,0.7862,3187.8,3187.6,0.52665924]
[1736871139415,0.03047278,3187.7,3187.6,0.52665924]
[1736871139596,0.7862,3187.8,3187.6,0.52665924]
[1736871139808,3.92267,3188.3,3187.6,0.52665924]
[1736871140023,0.7862,3188.3,3187.6,0.23409406]
[1736871140339,0.03093517,3188.2,3187.9,3.1368]
[1736871140686,0.7862,3188.7,3187.9,3.1368]
[1736871141029,0.0307732,3188.6,3188.0,0.29256518]
[1736871141226,0.7862,3188.7,3188.1,3.13665]
[1736871141932,0.7862,3188.7,3188.0,0.29256518]
[1736871142133,0.03126163,3188.6,3188.2,0.52654584]
[1736871142300,0.03920294,3188.6,3188.2,0.52654584]
[1736871142630,0.03126048,3188.5,3188.2,0.52654584]
[1736871142840,3.13622,3188.6,3188.2,0.52654584]
[1736871143005,0.03150228,3188.5,3188.2,0.52654584]
[1736871143523,0.03150228,3188.5,3188.2,0.23398066]
[1736871143731,0.7862,3188.7,3187.8,0.52654584]
[1736871143944,0.0314706,3188.4,3187.9,3.13682]
[1736871144108,0.7862,3188.7,3187.8,0.52654584]
[1736871144312,0.03114302,3188.3,3188.0,3.42928518]
[1736871144508,0.82540334,3188.7,3188.0,0.29256518]
[1736871144815,3.1363,3188.5,3188.0,0.29256518]
[1736871145023,0.03099365,3188.4,3188.0,0.29256518]
[1736871145436,3.16737365,3188.4,3188.0,0.29256518]
[1736871145749,0.07020189,3188.4,3187.9,0.23398066]
[1736871146055,0.7862,3188.3,3187.9,0.23398066]
[1736871146258,3.92296,3188.0,3187.9,0.23398066]
[1736871146427,5.10525981,3188.0,3187.9,0.23398066]
[1736871146621,5.10525981,3188.0,3187.8,0.29256518]
[1736871146842,3.13686,3187.9,3187.8,0.29256518]
[1736871147153,3.16784903,3187.9,3186.9,0.52654584]
[1736871147460,0.03095903,3187.9,3187.3,3.13737]
[1736871147760,0.03095903,3187.9,3186.9,3.52654584]
[1736871147917,3.20703009,3187.9,3187.0,3.13765]
[1736871148119,3.20703009,3187.9,3187.4,0.29256518]
[1736871148120,3.13686,3187.9,3187.4,0.29256518]
[1736871148436,0.03022647,3187.8,3187.4,0.29256518]
[1736871148644,3.13687,3187.9,3187.4,0.29256518]
[1736871148866,0.03030423,3187.8,3187.4,0.29256518]
[1736871149162,3.16730423,3187.8,3187.4,0.29256518]
[1736871149520,0.03030423,3187.8,3187.1,0.23409841]
[1736871149864,0.7862,3188.0,3187.1,3.37173841]
[1736871150082,0.03031163,3187.9,3187.1,3.37173841]
[1736871150381,0.42564179,3187.9,3187.1,0.23409841]
[1736871150536,3.92375,3187.2,3187.1,0.23409841]
[1736871150947,3.95349631,3187.2,3187.1,0.23409841]
[1736871151349,3.13801,3186.8,3186.5,0.29256518]
[1736871151758,0.02927555,3186.7,3186.5,0.29256518]
[1736871152125,3.13801,3186.8,3186.2,0.23409841]
[1736871152320,0.0292195,3186.6,3186.2,0.23409841]
[1736871152558,3.16733555,3186.7,3185.9,3.0]
[1736871152754,0.02916346,3186.5,3185.9,3.0]
[1736871153076,0.02923638,3186.4,3186.1,3.1386]
[1736871153574,3.13786,3186.9,3186.0,0.23409841]
[1736871153742,0.02895177,3186.3,3186.0,0.23409841]
[1736871154067,0.0392277,3187.0,3186.0,0.23409841]
[1736871154270,3.13805,3186.7,3186.0,0.23409841]
[1736871154478,0.02915819,3186.6,3186.0,0.23409841]
[1736871154765,0.7862,3186.4,3186.0,0.23409841]
[1736871154935,3.92461,3186.4,3186.0,0.23409841]
[1736871155144,0.07007425,3186.3,3186.0,0.23409841]
[1736871155573,3.16929898,3186.3,3186.0,0.23409841]
[1736871155745,3.16929898,3186.3,3185.6,0.29271802]
[1736871155944,0.03083898,3186.3,3185.2,3.7977]
[1736871156242,0.03083898,3186.3,3185.2,3.93717]
[1736871156573,0.03083898,3186.3,3185.2,0.7977]
[1736871156730,0.03083898,3186.3,3185.6,3.13908]
[1736871156929,0.03083898,3186.3,3185.4,3.13929]
[1736871157181,3.56482288,3186.3,3185.2,0.7977]
[1736871157386,0.42638288,3186.3,3185.2,3.9372]
[1736871157531,3.13861,3186.2,3185.2,3.9372]
[1736871157855,0.03032575,3186.1,3185.4,3.13928]
[1736871158025,3.92458,3186.4,3185.4,3.13928]
[1736871158228,0.03049592,3186.3,3185.4,3.13928]
[1736871158632,0.03049592,3186.3,3185.5,3.13919]
[1736871158973,0.03049592,3186.3,3185.7,3.13901]
[1736871159277,0.03049592,3186.3,3185.7,3.13894]
[1736871159637,0.03049592,3186.3,3185.5,3.1392]
[1736871159967,0.03049592,3186.3,3185.2,0.7977]
[1736871160192,3.16896592,3186.3,3185.3,3.13938]
[1736871160399,3.56840617,3186.3,3185.4,3.0]
[1736871160550,0.03049592,3186.3,3185.2,0.7977]
[1736871160749,0.03049592,3186.3,3185.4,3.0]
[1736871160978,0.7862,3186.4,3185.4,3.0]
[1736871161181,0.02985293,3186.2,3185.4,3.0]
[1736871161367,0.02991299,3186.3,3185.4,3.0]
[1736871161586,0.7862,3186.4,3185.4,3.0]
[1736871161587,0.02974488,3186.1,3185.4,3.0]
[1736871161759,0.02980494,3186.2,3185.6,3.13902]
[1736871161967,0.7862,3186.7,3185.7,3.9902689]
[1736871162176,0.7862,3187.2,3186.6,3.13813]
[1736871162499,0.7862,3187.2,3186.2,3.13853]
[1736871162682,0.7862,3187.6,3186.8,3.13792]
[1736871163260,0.7862,3187.6,3186.6,0.7977]
[1736871163498,0.7862,3187.6,3187.0,3.13771]
[1736871164389,0.7862,3188.0,3186.9,0.55]
[1736871164573,0.7862,3188.0,3187.3,3.13735]
[1736871164771,0.237,3188.4,3187.2,0.7977]
[1736871164772,0.7862,3188.4,3187.2,0.7977]
[1736871164983,0.7862,3188.4,3187.4,3.0]
[1736871165187,0.7862,3188.4,3187.9,3.13685]
[1736871165385,0.7862,3188.4,3187.4,3.13727]
[1736871165602,0.7862,3188.4,3187.2,0.7977]
[1736871166099,3.92259,3188.4,3187.4,3.13734]
[1736871166399,3.13666,3188.1,3187.2,3.13753]
[1736871166612,0.03921221,3188.0,3186.8,3.89779]
[1736871166764,3.13675,3188.1,3187.0,3.13771]
[1736871166964,0.313675,3188.0,3187.0,3.13771]
[1736871167299,0.313675,3188.0,3187.1,3.0]
[1736871167838,0.7862,3188.4,3187.4,3.9902689]
[1736871167996,0.7862,3188.4,3187.5,3.0]
[1736871168195,0.03020193,3188.3,3187.5,3.0]
[1736871168396,0.03920799,3188.3,3186.9,0.99361633]
[1736871168626,3.13676,3188.1,3187.1,3.13764]
[1736871168820,1.19024491,3188.0,3186.6,0.7599]
[1736871169094,4.28782204,3188.0,3187.0,3.0]
[1736871169800,3.13696,3187.8,3187.0,3.0]
[1736871170118,1.15103204,3188.0,3187.0,3.0]
[1736871170119,0.03030033,3187.7,3187.0,3.0]
[1736871170439,0.03030033,3187.7,3186.6,6.898]
[1736871170732,0.02996559,3187.6,3186.9,3.0]
[1736871170946,0.02996559,3187.6,3186.9,6.13775]
[1736871171091,0.03921617,3187.9,3186.7,3.4302108]
[1736871171298,0.237,3187.8,3186.7,0.2921908]
[1736871171534,0.8072,3187.5,3186.7,0.2921908]
[1736871171739,3.13754,3187.3,3186.7,0.2921908]
[1736871171912,3.13759,3187.2,3186.7,0.2921908]
[1736871172317,0.02967099,3187.1,3186.7,0.2921908]
[1736871172719,3.16740099,3187.1,3186.7,0.2921908]
[1736871172913,3.16740099,3187.1,3186.0,0.7599]
[1736871172914,0.8072,3187.0,3186.0,0.7599]
[1736871173115,0.84642517,3187.0,3186.1,3.0]
[1736871173336,0.8072,3186.3,3185.3,3.13933]
[1736871173516,0.03923393,3186.2,3185.1,0.7599]
[1736871173721,0.8072,3186.3,3185.1,0.7599]
[1736871173916,0.8072,3186.3,3185.5,3.13919]
[1736871175102,0.8072,3186.3,3185.6,3.13909]
[1736871175971,0.8072,3186.3,3185.3,7.5402689]
[1736871176133,0.8072,3186.7,3185.8,3.13888]
[1736871176663,1.201714,3186.7,3185.7,3.0]
[1736871176868,3.13839,3186.4,3185.4,3.43197575]
[1736871177167,3.94576,3186.2,3185.4,0.29269575]
[1736871177320,0.8072,3186.2,3185.4,0.29269575]
[1736871177723,0.8072,3186.2,3185.5,3.0]
[1736871178338,0.8072,3186.2,3185.5,3.1392]
[1736871178543,0.8072,3186.2,3185.7,3.0]
[1736871179220,0.03923231,3186.1,3185.6,0.29269575]
[1736871179537,0.8072,3186.2,3185.6,0.29269575]
[1736871179741,0.8072,3186.2,3185.8,0.23416975]
[1736871180628,0.8072,3186.2,3185.2,3.13944]
[1736871180946,0.8072,3186.2,3185.5,3.1392]
[1736871181760,0.8072,3186.2,3185.3,3.43214181]
[1736871181978,0.8185,3186.8,3185.6,0.23419069]
[1736871182273,0.8185,3186.8,3186.1,3.13862]
[1736871182821,0.8185,3186.8,3185.8,0.794]
[1736871182991,0.8185,3186.8,3186.0,3.13872]
[1736871183580,0.8185,3186.8,3186.3,3.13834]
[1736871183900,0.8185,3187.2,3186.3,3.0]
[1736871184099,0.8185,3187.2,3186.5,0.794]
[1736871184481,0.8185,3187.7,3186.8,3.13787]
[1736871184683,3.13715,3187.6,3186.6,3.1381]
[1736871184877,3.13726,3187.5,3186.6,3.1381]
[1736871185077,0.4387175,3187.5,3186.5,3.0]
[1736871185285,0.8185,3187.2,3186.5,3.0]
[1736871185497,0.8185,3187.2,3186.4,3.66517546]
[1736871185685,0.8185,3187.2,3186.5,3.0]
[1736871185991,0.8185,3187.2,3186.4,3.37237365]
[1736871185992,0.8185,3187.2,3186.4,0.23411365]
[1736871186336,3.13773,3187.1,3186.1,0.794]
[1736871186556,3.13773,3187.1,3186.3,3.0]
[1736871186694,0.8185,3187.2,3186.1,0.794]
[1736871187042,0.8185,3187.2,3186.6,3.13807]
[1736871188192,0.8185,3187.2,3186.7,3.13803]
[1736871188542,6.1369,3187.9,3186.3,3.0]
[1736871188543,0.8185,3187.9,3187.0,3.794]
[1736871188693,0.8185,3188.4,3187.7,3.13705]
[1736871188899,0.8185,3188.4,3187.4,3.0]
[1736871189237,0.8185,3188.4,3187.6,3.0]
[1736871190302,0.8185,3188.4,3187.7,3.13704]
[1736871190455,0.8185,3188.4,3187.9,3.13685]
[1736871190750,0.8185,3188.4,3187.6,3.0]
[1736871190751,0.8185,3188.4,3188.0,3.13672]
[1736871190921,0.8185,3188.7,3188.1,3.13663]
[1736871191121,0.8185,3188.7,3188.1,3.13657]
[1736871191537,0.8185,3188.7,3188.0,3.0]
[1736871191737,0.8185,3188.7,3188.2,3.0]
[1736871191940,0.8185,3188.7,3187.8,3.794]
[1736871192141,0.8185,3188.7,3188.0,3.0]
[1736871192540,0.8185,3188.7,3187.9,0.55]
[1736871192730,0.8185,3188.7,3188.2,3.13652]
[1736871193143,0.8185,3188.7,3187.9,0.55]
[1736871193454,0.61862408,3189.7,3187.8,0.794]
[1736871193455,3.95421,3189.1,3187.8,0.794]
[1736871193612,0.8185,3189.1,3187.9,3.13686]
[1736871193815,0.8185,3189.1,3188.2,3.13653]
[1736871194258,0.8185,3189.1,3187.9,3.9902689]
[1736871194432,0.8185,3189.1,3188.4,3.0]
[1736871194632,0.8185,3189.1,3188.4,3.13635]
[1736871194831,0.8185,3189.1,3188.6,3.13614]
[1736871195304,0.8185,3189.1,3188.5,3.0]
[1736871195763,0.8185,3189.1,3188.7,3.13605]
[1736871195946,0.8185,3189.5,3188.8,3.13596]
[1736871196265,0.8185,3189.5,3188.5,6.9902689]
[1736871196464,0.8185,3189.5,3188.6,0.55]
[1736871196761,0.8185,3190.0,3189.4,3.13536]
[1736871196960,0.8185,3190.0,3189.2,3.0]
[1736871197331,0.8185,3190.0,3189.4,3.13535]
[1736871197732,0.8185,3190.0,3189.5,3.13524]
[1736871198361,0.8185,3190.0,3189.4,3.0]
[1736871198655,0.8185,3190.0,3189.4,3.13529]
[1736871199457,0.8185,3190.0,3189.5,3.13527]
[1736871199818,3.13435,3190.5,3189.2,3.0]
[1736871199819,0.7859,3190.6,3189.6,3.13513]
[1736871200059,0.7859,3190.6,3189.7,3.13505]
[1736871200359,0.7859,3190.6,3189.6,3.0]
[1736871200566,3.13431,3190.5,3189.6,3.0]
[1736871200769,0.7859,3190.6,3189.7,3.13508]
[1736871201262,3.92011,3190.6,3189.7,3.13508]
[1736871201420,3.13438,3190.5,3189.4,3.13538]
[1736871201622,3.13438,3190.5,3189.3,0.55]
[1736871201936,3.13438,3190.5,3189.6,3.0]
[1736871203066,3.13438,3190.5,3189.4,3.13528]
[1736871203273,3.13438,3190.5,3189.6,3.0]
[1736871203476,0.4312291,3190.5,3189.4,3.0]
[1736871203638,0.4312291,3190.5,3189.2,3.55]
[1736871203639,3.13459,3190.2,3189.1,3.13567]
[1736871203842,0.7859,3190.3,3189.1,3.13567]
[1736871203843,3.13473,3190.1,3189.1,3.13567]
[1736871204040,3.13492,3189.9,3188.9,6.1358]
[1736871204226,0.7859,3189.8,3188.9,3.13587]
[1736871204431,0.7859,3189.8,3189.4,3.0]
[1736871204833,0.7859,3189.8,3189.1,0.55]
[1736871205261,0.7859,3189.8,3188.9,3.13583]
[1736871205503,3.1351,3189.7,3188.7,3.13598]
[1736871205706,0.7859,3189.5,3188.5,3.13622]
[1736871205893,3.13577,3189.1,3188.2,1.255954]
[1736871206087,0.7859,3189.4,3188.8,3.13596]
[1736871206291,0.7859,3189.4,3188.9,3.13587]
[1736871206576,0.7859,3189.4,3188.7,6.13602]
[1736871208218,0.7859,3189.4,3188.5,3.13627]
[1736871208423,0.7859,3189.4,3188.7,3.55]
[1736871208622,0.7859,3189.4,3189.2,3.0]
[1736871208776,3.13421,3190.6,3189.1,0.55]
[1736871208777,0.7859,3190.5,3189.1,0.55]
[1736871209133,0.7859,3190.5,3189.2,3.0]
[1736871209134,0.7859,3190.0,3189.2,3.0]
[1736871209541,3.9207,3190.0,3188.9,3.13584]
[1736871209692,0.7859,3189.7,3188.7,3.13602]
[1736871209888,3.921,3189.7,3188.7,3.13602]
[1736871210231,0.03919121,3189.6,3188.4,3.0]
[1736871210390,3.13531,3189.5,3188.5,3.13622]
[1736871210588,3.92102,3189.7,3188.6,3.13609]
[1736871210893,0.7859,3189.7,3188.5,3.68622]